[Event "European Women Rapid-ch 2023"]
[Site "Monaco"]
[Date "2024.01.13"]
[Round "3.23"]
[White "Caku, Kler"]
[Black "Gaprindashvili, Nona"]
[Result "0-1"]
[ECO "B00"]
[WhiteElo "1744"]
[BlackElo "2243"]
[Annotator "RC"]
[PlyCount "170"]
[EventDate "2023.12.19"]
[EventType "swiss"]
[EventCountry "MNC"]
[SourceTitle "playchess.com"]
[Source "ChessBase"]
[SourceQuality "1"]
[TimeControl "900+10"]

1. e4 {[%emt 0:00:02]} b6 {[%emt 0:00:02]} 2. d4 {[%emt 0:00:02]} Bb7 {[%emt 0:00:01]} 3. Nc3 {[%emt 0:00:02]} e6 {[%emt 0:00:02]} 4. Nf3 {[%emt 0:00:02]} Bb4 {[%emt 0:00:02]} 5. Bd3 {[%emt 0:00:02]} Nf6 {[%emt 0:00:02]} 6. Qe2 {[%emt 0:00:01]} d5 {[%emt 0:00:06]} 7. e5 {[%emt 0:00:12]} Ne4 {[%emt 0:00:08]} 8. Bd2 {[%emt 0:00:14]} Nxd2 {[%emt 0:00:30]} 9. Nxd2 {[%emt 0:01:07]} c5 {[%emt 0:00:21]} 10. Qg4 {[%emt 0:00:53]} O-O {[%emt 0:00:23]} 11. a3 {[%emt 0:00:22]} Bxc3 {[%emt 0:01:04]} 12. bxc3 {[%emt 0:00:02]} c4 {[%emt 0:00:01]} 13. Be2 {[%emt 0:00:40]} f5 {[%emt 0:00:04]} 14. Qf3 {[%emt 0:00:41]} Nc6 {[%emt 0:01:04]} 15. h4 {[%emt 0:00:11]} b5 {[%emt 0:00:07]} 16. h5 {[%emt 0:00:53]} a5 {[%emt 0:00:13]} 17. Rb1 {[%emt 0:01:27]} b4 {[%emt 0:00:01]} 18. cxb4 {[%emt 0:00:16]} axb4 {[%emt 0:00:07]} 19. axb4 {[%emt 0:00:13]} Nxd4 {[%emt 0:00:05]} 20. Qc3 {[%emt 0:00:52]} Qb6 {[%emt 0:00:05]} 21. Nf3 {[%emt 0:01:30]} Nb5 {[%emt 0:02:56]} 22. Qe3 {[%emt 0:00:58]} d4 {[%emt 0:03:07]} 23. Qg5 {[%emt 0:01:45]} Bd5 {[%emt 0:00:32]} 24. h6 {[%emt 0:00:15]} g6 {[%emt 0:00:09]} 25. Nh4 {[%emt 0:01:43]} Qd8 {[%emt 0:01:35]} 26. Qg3 {[%emt 0:00:03]} Qe7 {[%emt 0:00:18]} 27. Bh5 {[%emt 0:01:12]} Kh8 {[%emt 0:01:12]} 28. Qxg6 {[%emt 0:02:46]} Na3 {[%emt 0:00:40]} 29. Rc1 {[%emt 0:00:38]} Nxc2+ {[%emt 0:00:11]} 30. Kf1 {[%emt 0:00:14]} d3 {[%emt 0:00:09]} 31. Qg7+ {[%emt 0:00:34]} Qxg7 {[%emt 0:00:02]} 32. hxg7+ {[%emt 0:00:02]} Kxg7 {[%emt 0:00:02]} 33. Kg1 {[%emt 0:00:34]} Nxb4 {[%emt 0:00:27]} 34. Kh2 {[%emt 0:00:08]} Ra2 {[%emt 0:00:08]} 35. f4 {[%emt 0:00:13]} Nc2 {[%emt 0:00:41]} 36. Bd1 {[%emt 0:00:08]} Ne3 {[%emt 0:00:09]} 37. Bf3 {[%emt 0:00:05]} Bxf3 {[%emt 0:00:11]} 38. Nxf3 {[%emt 0:00:03]} Rxg2+ {[%emt 0:01:01]} 39. Kh3 {[%emt 0:00:01]} Rf2 {[%emt 0:00:10]} 40. Nd4 {[%emt 0:00:12]} Kf7 {[%emt 0:00:31]} 41. Kg3 {[%emt 0:00:07]} Rb2 {[%emt 0:01:37]} 42. Rxh7+ {[%emt 0:00:11]} Kg6 {[%emt 0:01:02]} 43. Rch1 {[%emt 0:00:30]} Ng4 {[%emt 0:00:02]} 44. Nxe6 {[%emt 0:00:08]} Rf7 {[%emt 0:00:17]} 45. Rh8 {[%emt 0:00:11]} Re7 {[%emt 0:00:15]} 46. Nf8+ {[%emt 0:00:10]} Kf7 {[%emt 0:00:05]} 47. e6+ {[%emt 0:00:13]} Kf6 {[%emt 0:00:11]} 48. Nd7+ {[%emt 0:00:10]} Kxe6 {[%emt 0:00:05]} 49. Nc5+ {[%emt 0:00:10]} Kd5 {[%emt 0:00:02]} 50. Na4 {[%emt 0:00:03]} Re3+ {[%emt 0:00:03]} 51. Kh4 {[%emt 0:00:05]} Rh2+ {[%emt 0:00:03]} 52. Rxh2 {[%emt 0:00:10]} Nxh2 {[%emt 0:00:02]} 53. Rd8+ {[%emt 0:00:12]} Ke4 {[%emt 0:00:01]} 54. Nc3+ {[%emt 0:00:14]} Kf3 {[%emt 0:00:05]} 55. Kh3 {[%emt 0:00:14]} Ng4 {[%emt 0:00:04]} 56. Kh4 {[%emt 0:00:11]} Re1 {[%emt 0:00:08]} 57. Kg5 {[%emt 0:00:05]} Rc1 {[%emt 0:00:02]} 58. Nb5 {[%emt 0:00:14]} Ne3 {[%emt 0:00:09]} 59. Nd4+ {[%emt 0:00:11]} Kf2 {[%emt 0:00:02]} 60. Nb5 {[%emt 0:00:07]} Rg1+ {[%emt 0:00:05]} 61. Kf6 {[%emt 0:00:04]} Kf3 {[%emt 0:00:04]} 62. Ke5 {[%emt 0:00:05]} Rb1 {[%emt 0:00:03]} 63. Nc3 {[%emt 0:00:24]} Rc1 {[%emt 0:00:04]} 64. Nb5 {[%emt 0:00:08]} Rb1 {[%emt 0:00:08]} 65. Nc3 {[%emt 0:00:03]} Rb3 {[%emt 0:00:02]} 66. Na2 {[%emt 0:00:12]} Kf2 {[%emt 0:00:05]} 67. Nc1 {[%emt 0:00:14]} Rc3 {[%emt 0:00:06]} 68. Na2 {[%emt 0:00:02]} Rc2 {[%emt 0:00:04]} 69. Nb4 {[%emt 0:00:01]} Rc1 {[%emt 0:00:02]} 70. Nxd3+ {[%emt 0:00:31]} cxd3 {[%emt 0:00:03]} 71. Rxd3 {[%emt 0:00:02]} Kf3 {[%emt 0:00:05]} 72. Rd4 {[%emt 0:00:12]} Rc5+ {[%emt 0:00:07]} 73. Kf6 {[%emt 0:00:03]} Kg4 {[%emt 0:00:05]} 74. Ra4 {[%emt 0:00:22]} Rc6+ {[%emt 0:00:02]} 75. Ke5 {[%emt 0:00:03]} Ng2 {[%emt 0:00:11]} 76. Rb4 {[%emt 0:00:17]} Rc5+ {[%emt 0:00:02]} 77. Kd4 {[%emt 0:00:09]} Rc8 {[%emt 0:00:02]} 78. Kd3 {[%emt 0:00:13]} Rd8+ {[%emt 0:00:10]} 79. Ke2 {[%emt 0:00:02]} Nxf4+ {[%emt 0:00:03]} 80. Ke3 {[%emt 0:00:17]} Rd3+ {[%emt 0:00:05]} 81. Kf2 {[%emt 0:00:03]} Rf3+ {[%emt 0:00:01]} 82. Kg1 {[%emt 0:00:11]} Rc3 {[%emt 0:00:05]} 83. Rb1 {[%emt 0:00:08]} Kg3 {[%emt 0:00:06]} 84. Ra1 {[%emt 0:00:07]} Nd3 {[%emt 0:00:08]} 85. Rb1 {[%emt 0:00:12]} Rc1+ {[%emt 0:00:02]} 0-1

[Event "European Women Rapid-ch 2023"]
[Site "Monaco"]
[Date "2024.01.13"]
[Round "3.24"]
[White "Stangl, Anita"]
[Black "Dornbusch, Tatiana"]
[Result "0-1"]
[ECO "B02"]
[WhiteElo "2055"]
[BlackElo "2218"]
[Annotator "RC"]
[PlyCount "122"]
[EventDate "2023.12.19"]
[EventType "swiss"]
[EventCountry "MNC"]
[SourceTitle "playchess.com"]
[Source "ChessBase"]
[SourceQuality "1"]
[TimeControl "900+10"]

1. e4 {[%emt 0:00:10]} Nf6 {[%emt 0:00:02]} 2. Nc3 {[%emt 0:00:00]} d5 {[%emt 0:00:09]} 3. e5 {[%emt 0:00:04]} d4 {[%emt 0:00:04]} 4. exf6 {[%emt 0:01:44]} dxc3 {[%emt 0:00:02]} 5. fxg7 {[%emt 0:00:03]} cxd2+ {[%emt 0:00:03]} 6. Qxd2 {[%emt 0:00:02]} Qxd2+ {[%emt 0:00:04]} 7. Bxd2 {[%emt 0:00:01]} Bxg7 {[%emt 0:00:01]} 8. c3 {[%emt 0:00:14]} Bf5 {[%emt 0:00:26]} 9. Nf3 {[%emt 0:00:14]} Nd7 {[%emt 0:01:02]} 10. Nh4 {[%emt 0:01:05]} Be6 {[%emt 0:00:24]} 11. Be2 {[%emt 0:00:14]} O-O-O {[%emt 0:00:13]} 12. Be3 {[%emt 0:00:22]} a6 {[%emt 0:01:49]} 13. Nf3 {[%emt 0:00:47]} Rhg8 {[%emt 0:01:33]} 14. Ng5 {[%emt 0:00:50]} Bd5 {[%emt 0:00:24]} 15. Bf3 {[%emt 0:00:40]} Bc4 {[%emt 0:00:36]} 16. Be2 {[%emt 0:02:01]} Ne5 {[%emt 0:04:57]} 17. Bd4 {[%emt 0:01:56]} Bd5 {[%emt 0:00:27]} 18. f3 {[%emt 0:01:34]} Nd3+ {[%emt 0:03:01]} 19. Bxd3 {[%emt 0:00:22]} Bxd4 {[%emt 0:00:01]} 20. Nh3 {[%emt 0:05:00]} Be5 {[%emt 0:01:07]} 21. Bf1 {[%emt 0:00:35]} Rg6 {[%emt 0:00:17]} 22. Nf2 {[%emt 0:00:07]} Re6 {[%emt 0:00:14]} 23. O-O-O {[%emt 0:00:23]} Bxa2 {[%emt 0:00:21]} 24. Rxd8+ {[%emt 0:00:01]} Kxd8 {[%emt 0:00:01]} 25. Ne4 {[%emt 0:00:07]} Bd5 {[%emt 0:01:05]} 26. Bd3 {[%emt 0:00:10]} Bf4+ {[%emt 0:00:47]} 27. Kc2 {[%emt 0:00:01]} a5 {[%emt 0:00:04]} 28. g3 {[%emt 0:00:04]} Bh6 {[%emt 0:00:05]} 29. Ra1 {[%emt 0:00:13]} b6 {[%emt 0:00:02]} 30. c4 {[%emt 0:00:11]} Bc6 {[%emt 0:00:03]} 31. g4 {[%emt 0:00:25]} Bf4 {[%emt 0:00:03]} 32. h4 {[%emt 0:00:21]} h6 {[%emt 0:00:05]} 33. Rg1 {[%emt 0:00:14]} Rg6 {[%emt 0:00:13]} 34. Nc3 {[%emt 0:00:14]} Rg8 {[%emt 0:00:03]} 35. Be4 {[%emt 0:00:02]} Bxe4+ {[%emt 0:00:14]} 36. fxe4 {[%emt 0:00:03]} Be5 {[%emt 0:00:10]} 37. Nd5 {[%emt 0:00:11]} e6 {[%emt 0:00:05]} 38. Nc3 {[%emt 0:00:08]} Ke7 {[%emt 0:00:02]} 39. b3 {[%emt 0:00:02]} Bf6 {[%emt 0:00:17]} 40. h5 {[%emt 0:00:06]} Bd4 {[%emt 0:00:05]} 41. Rg2 {[%emt 0:00:02]} Bxc3 {[%emt 0:00:20]} 42. Kxc3 {[%emt 0:00:02]} Kd6 {[%emt 0:00:00]} 43. Kd3 {[%emt 0:00:16]} Ke5 {[%emt 0:00:02]} 44. Ke3 {[%emt 0:00:01]} f5 {[%emt 0:00:07]} 45. exf5 {[%emt 0:00:17]} exf5 {[%emt 0:00:00]} 46. g5 {[%emt 0:00:38]} Rxg5 {[%emt 0:00:10]} 47. Rh2 {[%emt 0:00:02]} Rg3+ {[%emt 0:00:02]} 48. Kd2 {[%emt 0:00:01]} Rxb3 {[%emt 0:00:02]} 49. Re2+ {[%emt 0:00:01]} Kd4 {[%emt 0:00:06]} 50. Re7 {[%emt 0:00:01]} Kxc4 {[%emt 0:00:07]} 51. Rxc7+ {[%emt 0:00:01]} Kb4 {[%emt 0:00:12]} 52. Rh7 {[%emt 0:00:03]} b5 {[%emt 0:00:06]} 53. Rxh6 {[%emt 0:00:02]} Rh3 {[%emt 0:00:02]} 54. Kc2 {[%emt 0:00:13]} a4 {[%emt 0:00:03]} 55. Rh8 {[%emt 0:00:11]} Rh2+ {[%emt 0:00:04]} 56. Kd3 {[%emt 0:00:05]} Kb3 {[%emt 0:00:16]} 57. h6 {[%emt 0:00:23]} a3 {[%emt 0:00:01]} 58. h7 {[%emt 0:00:05]} b4 {[%emt 0:00:01]} 59. Rf8 {[%emt 0:00:27]} Rxh7 {[%emt 0:00:05]} 60. Rxf5 {[%emt 0:00:01]} Rd7+ {[%emt 0:00:11]} 61. Ke2 {[%emt 0:00:03]} Kb2 {[%emt 0:00:02]} 0-1

[Event "European Women Rapid-ch 2023"]
[Site "Monaco"]
[Date "2024.01.13"]
[Round "3.25"]
[White "Agrest, Inna"]
[Black "Nicoara, Malina"]
[Result "1-0"]
[ECO "B37"]
[WhiteElo "2287"]
[BlackElo "2054"]
[Annotator "TA"]
[PlyCount "69"]
[EventDate "2023.12.19"]
[EventType "swiss"]
[EventCountry "MNC"]
[SourceTitle "playchess.com"]
[Source "ChessBase"]
[SourceQuality "1"]
[TimeControl "900+10"]

{[%evp 16,69,27,8,62,44,34,7,25,19,22,19,27,18,35,28,35,21,15,16,33,32,39,34,46,43,60,47,50,52,50,63,51,29,36,25,81,66,114,67,75,78,326,343,344,325,651,661,639,630,622,600,589,531,704,734]} 1. e4 {[%emt 0:00:01]} c5 {[%emt 0:00:03]} 2. Nf3 {[%emt 0:00:02][%cal Bg1f3,Bf3d4,Bd4c2,Bc2e3][%mdl 32]} Nc6 {[%emt 0:00:02]} 3. d4 {[%emt 0:00:01]} cxd4 {[%emt 0:00:02]} 4. Nxd4 {[%emt 0:00:01]} g6 {[%emt 0:00:01]} 5. c4 {[%emt 0:00:08]} Bg7 {[%emt 0:00:07]} 6. Nc2 {[%emt 0:00:01]} d6 {[%emt 0:00:05]} 7. Be2 {[%emt 0:00:07]} Nf6 {[%emt 0:00:06]} 8. Nc3 {[%emt 0:00:02]} O-O {[%emt 0:00:04]} 9. O-O {[%emt 0:00:03]} a5 {[%emt 0:01:04]} (9... Nd7 $11) 10. Rb1 {[%emt 0:00:33]} Nd7 {[%emt 0:00:15]} 11. Ne3 {[%emt 0:06:02]} Nc5 {[%emt 0:00:21] The position is equal.} 12. f3 {[%emt 0:00:05]} a4 {[%emt 0:01:10][%cal Oa4a3]} 13. Bd2 {[%emt 0:00:22]} Nd4 {[%emt 0:00:42]} 14. Kh1 {[%emt 0:00:27]} e5 {[%emt 0:03:31]} 15. b4 {[%emt 0:00:30]} axb3 {[%emt 0:00:08]} 16. axb3 {[%emt 0:00:01]} Bd7 {[%emt 0:00:58]} 17. b4 {[%emt 0:00:29]} Nce6 {[%emt 0:00:02]} 18. Ned5 {[%emt 0:01:09]} Kh8 {[%emt 0:01:08]} 19. Bd3 {[%emt 0:02:55]} Bc6 {[%emt 0:00:15]} 20. Be3 {[%emt 0:01:02]} f5 {[%emt 0:00:52][%cal Bf7f5,Bf5f4][%mdl 32]} 21. Ra1 {[%emt 0:00:29]} Rxa1 {[%emt 0:00:13]} 22. Qxa1 {[%emt 0:00:01]} f4 {[%emt 0:00:24]} 23. Bf2 {[%emt 0:00:09]} Qa8 {[%emt 0:00:48]} 24. Nb6 {[%emt 0:00:18]} Qd8 {[%emt 0:00:35]} 25. Qa7 {[%emt 0:00:45]} Rf7 {[%emt 0:01:51]} (25... g5 $11 {keeps the balance.}) 26. Ra1 {[%emt 0:00:19]} Bf6 {[%emt 0:01:32]} (26... g5 $14 {is superior.}) 27. b5 {[%emt 0:00:59]} (27. Ne2 $16) 27... Be8 {[%emt 0:00:27]} 28. Ncd5 {[%emt 0:00:09] Black must now prevent Nxf6.} Bh4 {[%emt 0:00:49] [#] This costs Black the game.} (28... Nb3 $16 {might work better.}) 29. Bxh4 $1 $18 {[%emt 0:00:40]} Qxh4 {[%emt 0:00:01]} 30. Qb8 $1 {[%emt 0:00:02][%csl LRd6,LRe8]} Nd8 $2 {[%emt 0:00:11]} (30... Kg7 31. Qxd6 (31. Qxe8 Nc5 $18) 31... Qh5) 31. Qxd6 {[%emt 0:00:12] White is clearly winning.} Qg5 {[%emt 0:00:57]} 32. Ra8 {[%emt 0:00:31]} N4e6 {[%emt 0:00:12]} 33. h3 {[%emt 0:00:36]} Kg7 {[%emt 0:00:01]} 34. c5 {[%emt 0:00:33]} h5 {[%emt 0:00:34]} 35. Bc4 {[%emt 0:00:06] Weighted Error Value: White=0.11 (very precise) /Black=0.43.  Loses game:     	---       	Black=1      Mistake:       	White=1     	Black=3      Inaccurate:     	White=1     	---        OK:         	White=8     	Black=6      Best:        	White=1     	Black=1      Strong:       	White=1     	---} 1-0

[Event "European Women Rapid-ch 2023"]
[Site "Monaco"]
[Date "2024.01.13"]
[Round "3.26"]
[White "Calzetta Ruiz, Monica"]
[Black "Jimenez Fernandez, Rebeca"]
[Result "1/2-1/2"]
[ECO "B13"]
[WhiteElo "2241"]
[BlackElo "2051"]
[Annotator "TA"]
[PlyCount "125"]
[EventDate "2023.12.19"]
[EventType "swiss"]
[EventCountry "MNC"]
[SourceTitle "playchess.com"]
[Source "ChessBase"]
[SourceQuality "1"]
[TimeControl "900+10"]

{[%evp 21,125,10,49,60,106,103,128,95,138,147,104,67,70,0,123,-23,165,172,149,190,202,133,334,229,232,214,195,191,312,-133,108,93,104,99,96,96,104,45,120,0,0,0,0,0,0,0,0,0,29,29,30,12,42,42,39,41,38,0,0,0,21,0,0,0,78,47,80,0,20,0,0,0,0,0,0,0,0,0,0,0,0,0,0,0,0,0,0,0,0,0,0,0,0,0,0,0,0,0,0,0,0,0,0,0,0,0]} 1. e4 {[%emt 0:00:03]} c6 {[%emt 0:00:01]} 2. d4 {[%emt 0:00:02]} d5 {[%emt 0:00:00]} 3. exd5 {[%emt 0:00:03]} cxd5 {[%emt 0:00:01]} 4. c4 {[%emt 0:00:02]} Nf6 {[%emt 0:00:02]} 5. Nc3 {[%emt 0:00:01]} Nc6 {[%emt 0:00:01]} 6. Bg5 {[%emt 0:00:03]} dxc4 {[%emt 0:00:29]} 7. Bxc4 {[%emt 0:01:17]} h6 {[%emt 0:01:40]} 8. Bh4 {[%emt 0:00:35]} a6 {[%emt 0:03:47]} 9. Nf3 {[%emt 0:01:04]} g5 {[%emt 0:00:40]} 10. Bg3 {[%emt 0:00:05]} Bg7 {[%emt 0:00:01]} 11. O-O {[%emt 0:01:16]} O-O {[%emt 0:00:08]} 12. d5 {[%emt 0:00:22]} Nb8 {[%emt 0:01:02]} (12... Na5 $14 13. Bd3 Bg4 (13... Nxd5 $2 14. Nxd5 f5 15. Bxf5 $18)) 13. Re1 $16 {[%emt 0:00:09]} Nbd7 {[%emt 0:00:19]} 14. Rc1 {[%emt 0:00:20]} b5 {[%emt 0:00:24]} 15. Bb3 {[%emt 0:03:41]} Bb7 {[%emt 0:00:11]} 16. d6 {[%emt 0:02:23]} e6 {[%emt 0:00:41]} 17. Nd4 {[%emt 0:00:20]} (17. Ne5 $14) 17... Nc5 {[%emt 0:00:54]} (17... Qb6 $11 {hält das Gleichgewicht.}) 18. Bc2 {[%emt 0:00:05]} (18. Nd5 $1 $16 {[%cal Rd5e7] Ne7+ wäre nun fies.} Nxd5 19. Bxd5 (19. Rxc5 Qb6 $16) 19... Bxd5 20. Rxc5) 18... b4 $2 {[%emt 0:01:20]} (18... Rc8 $11) 19. Na4 $18 {[%emt 0:00:14]} Nxa4 {[%emt 0:02:51]} 20. Bxa4 {[%emt 0:00:03]} Qb6 {[%emt 0:01:43]} 21. Be5 {[%emt 0:02:35]} Rfd8 $2 {[%emt 0:01:19]} (21... Rac8 $16 {ist eine bessere Verteidigung.}) 22. Nc6 {[%emt 0:00:25]} Bxc6 {[%emt 0:00:32]} 23. Rxc6 {[%emt 0:00:02]} (23. Bxc6 Rac8 24. Ba4 Rxc1 25. Qxc1 Nd5 $14) 23... Qa5 {[%emt 0:00:05]} 24. Bb3 {[%emt 0:01:52]} Qb5 {[%emt 0:00:27]} (24... Ne8 $142) 25. Qf3 $2 {[%emt 0:00:11] [#]} (25. Rc7 $18 Rf8 26. Qd4) 25... Nd5 $2 {[%emt 0:00:12]} (25... g4 $1 $17 {[%cal Rg4f3] und es läuft.} 26. Qf4 (26. a4 $2 Qxe5 27. Qd1 Qf5 $19) 26... Qxc6 27. Bxf6 Bxf6 (27... Rxd6 28. Qxg4 Kf8 29. Qxg7+ Ke8 30. Rxe6+ Rxe6 31. Qg8+ Kd7 32. Qxf7+ Kd6 33. Qxe6+) 28. Qxf6 Qxd6 (28... Rxd6 29. Qxh6 Rad8 30. Qg5+ Kf8 31. Qh6+ Ke8 32. Rc1 $11)) 26. Bxg7 {[%emt 0:01:37]} (26. Rcc1 {ist interessant.} Rac8 27. Rxc8 Rxc8 28. h4) 26... Kxg7 {[%emt 0:00:01]} 27. Bxd5 {[%emt 0:00:04]} Qxd5 {[%emt 0:00:00]} 28. Qxd5 {[%emt 0:00:05]} exd5 {[%emt 0:00:01]} 29. Re7 {[%emt 0:00:05]} ({Günstiger ist} 29. Rd1 $16) 29... Rac8 {[%emt 0:00:40] [#]} (29... Kf6 $14) 30. Rcc7 {[%emt 0:00:08]} (30. Rxa6 $2 {ist ein Selbstmatt.} Rc1+) (30. Rec7 $1 $16 {[%cal Rc7c8]} Rxc7 31. dxc7) 30... Rxc7 $11 {[%emt 0:00:12]} 31. dxc7 {[%emt 0:00:02]} Rc8 {[%emt 0:00:01]} 32. Rd7 {[%emt 0:00:15]} Kf6 {[%emt 0:00:09]} 33. Rxd5 {[%emt 0:00:26]} Rxc7 {[%emt 0:00:01]} 34. g4 {[%emt 0:00:05]} Ke6 {[%emt 0:00:07]} 35. Ra5 {[%emt 0:00:04]} Rc6 {[%emt 0:00:17]} 36. Kg2 {[%emt 0:00:02]} Kd7 {[%emt 0:00:13]} (36... b3 $5) 37. b3 {[%emt 0:00:05]} Kc7 {[%emt 0:00:03]} 38. Ra4 {[%emt 0:00:39]} Rb6 {[%emt 0:00:05]} 39. Kf3 {[%emt 0:00:02]} Kb7 {[%emt 0:00:24]} 40. Ra5 {[%emt 0:00:06]} Rc6 {[%emt 0:00:10]} 41. Ke4 {[%emt 0:00:13]} Kb6 {[%emt 0:00:04]} 42. Rf5 {[%emt 0:00:02]} f6 {[%emt 0:00:06]} (42... Rc2 $11) 43. f4 {[%emt 0:00:02]} a5 {[%emt 0:00:22]} 44. Rd5 {[%emt 0:00:31]} (44. Kd4 $16) 44... gxf4 {[%emt 0:00:14]} 45. Kxf4 {[%emt 0:00:02]} Rc2 {[%emt 0:00:02]} 46. Rd6+ {[%emt 0:00:00]} Kc5 {[%emt 0:00:20]} 47. Rxf6 {[%emt 0:00:04]} Rxh2 {[%emt 0:00:01]} 48. Rf5+ {[%emt 0:00:04]} Kb6 {[%emt 0:00:03]} 49. Rh5 {[%emt 0:00:05]} Rxa2 {[%emt 0:00:06]} 50. Rxh6+ {[%emt 0:00:01]} Kc5 {[%emt 0:00:01]} 51. g5 {[%emt 0:00:04]} Kd4 {[%emt 0:00:28]} 52. Rh3 {[%emt 0:00:36]} a4 {[%emt 0:00:16]} 53. bxa4 {[%emt 0:00:11]} Rxa4 {[%emt 0:00:01]} 54. g6 {[%emt 0:00:02]} Ra8 {[%emt 0:00:25]} 55. Kf5 {[%emt 0:00:15]} (55. g7 $5 Rg8 $8 56. Rg3 $11) 55... Kc4 {[%emt 0:00:06]} 56. g7 {[%emt 0:00:05]} Rg8 {[%emt 0:00:03]} 57. Kf6 {[%emt 0:00:03]} b3 {[%emt 0:00:01]} 58. Kf7 {[%emt 0:00:07]} Rxg7+ {[%emt 0:00:01]} 59. Kxg7 {[%emt 0:00:01]} b2 {[%emt 0:00:01]} 60. Rh1 {[%emt 0:00:03]} Kc3 {[%emt 0:00:01]} 61. Kf6 {[%emt 0:00:01]} Kc2 {[%emt 0:00:01]} 62. Ke5 {[%emt 0:00:01]} b1=Q 63. Rxb1 {[%emt 0:00:13]} 1/2-1/2

[Event "European Women Rapid-ch 2023"]
[Site "Monaco"]
[Date "2024.01.13"]
[Round "3.27"]
[White "Bacrot, Nathalie"]
[Black "Krasteva, Beloslava"]
[Result "0-1"]
[ECO "A36"]
[WhiteElo "1968"]
[BlackElo "2251"]
[Annotator "RC"]
[PlyCount "94"]
[EventDate "2023.12.19"]
[EventType "swiss"]
[EventCountry "MNC"]
[SourceTitle "playchess.com"]
[Source "ChessBase"]
[SourceQuality "1"]
[TimeControl "900+10"]

1. Nf3 {[%emt 0:00:02]} c5 {[%emt 0:00:13]} 2. g3 {[%emt 0:00:02]} Nc6 {[%emt 0:00:02]} 3. Bg2 {[%emt 0:00:01]} g6 {[%emt 0:00:02]} 4. c4 {[%emt 0:00:12]} Bg7 {[%emt 0:00:02]} 5. O-O {[%emt 0:00:06]} e6 {[%emt 0:00:10]} 6. e4 {[%emt 0:01:59]} Nge7 {[%emt 0:00:23]} 7. Nc3 {[%emt 0:01:19]} O-O {[%emt 0:00:15]} 8. d3 {[%emt 0:03:23]} d6 {[%emt 0:00:08]} 9. Be3 {[%emt 0:00:08]} Nd4 {[%emt 0:00:49]} 10. Qd2 {[%emt 0:00:47]} Re8 {[%emt 0:00:28]} 11. h4 {[%emt 0:00:24]} Qd7 {[%emt 0:01:59]} 12. h5 {[%emt 0:00:27]} b6 {[%emt 0:00:08]} 13. hxg6 {[%emt 0:01:46]} hxg6 {[%emt 0:00:06]} 14. Ng5 {[%emt 0:02:20]} Bb7 {[%emt 0:00:29]} 15. Ne2 {[%emt 0:01:00]} Nec6 {[%emt 0:00:42]} 16. Nf4 {[%emt 0:01:19]} Ne5 {[%emt 0:01:05]} 17. Qd1 {[%emt 0:00:19]} Qe7 {[%emt 0:01:03]} 18. Ne2 {[%emt 0:00:36]} f6 {[%emt 0:01:35]} 19. Nxd4 {[%emt 0:00:19]} cxd4 {[%emt 0:00:22]} 20. Nxe6 {[%emt 0:00:22]} dxe3 {[%emt 0:00:58]} 21. Nxg7 {[%emt 0:00:41]} exf2+ {[%emt 0:00:09]} 22. Rxf2 {[%emt 0:00:01]} Kxg7 {[%emt 0:00:03]} 23. b3 {[%emt 0:00:07]} Bc8 {[%emt 0:01:10]} 24. d4 {[%emt 0:00:02]} Ng4 {[%emt 0:00:12]} 25. Re2 {[%emt 0:00:42]} Bb7 {[%emt 0:00:22]} 26. Qe1 {[%emt 0:00:26]} f5 {[%emt 0:00:36]} 27. Bf3 {[%emt 0:00:32]} Qd7 {[%emt 0:01:28]} 28. Bxg4 {[%emt 0:00:05]} fxg4 {[%emt 0:00:02]} 29. Qc3 {[%emt 0:00:07]} Rxe4 {[%emt 0:00:49]} 30. d5+ {[%emt 0:00:06]} Re5 {[%emt 0:00:09]} 31. Rxe5 {[%emt 0:00:06]} dxe5 {[%emt 0:00:02]} 32. Qxe5+ {[%emt 0:00:00]} Kg8 {[%emt 0:00:13]} 33. Re1 {[%emt 0:00:25]} Rf8 {[%emt 0:00:30]} 34. Qe2 {[%emt 0:00:21]} Qf5 {[%emt 0:00:31]} 35. Qe6+ {[%emt 0:00:05]} Qxe6 {[%emt 0:02:16]} 36. Rxe6 {[%emt 0:00:01]} Kf7 {[%emt 0:00:02]} 37. Kf2 {[%emt 0:00:26]} Rh8 {[%emt 0:00:14]} 38. Rd6 {[%emt 0:00:05]} Re8 {[%emt 0:00:37]} 39. b4 {[%emt 0:00:02]} Bc8 {[%emt 0:00:42]} 40. c5 {[%emt 0:00:03]} b5 {[%emt 0:00:15]} 41. Rc6 {[%emt 0:00:04]} a6 {[%emt 0:00:12]} 42. Rc7+ {[%emt 0:00:17]} Kf6 {[%emt 0:00:05]} 43. Rc6+ {[%emt 0:00:03]} Ke5 {[%emt 0:00:04]} 44. d6 {[%emt 0:00:03]} Kd5 {[%emt 0:00:22]} 45. Rc7 {[%emt 0:00:01]} Bf5 {[%emt 0:00:19]} 46. Ra7 {[%emt 0:00:05]} Rf8 {[%emt 0:00:12]} 47. Rxa6 {[%emt 0:00:02]} Bc8+ {[%emt 0:00:01]} 0-1

[Event "European Women Rapid-ch 2023"]
[Site "Monaco"]
[Date "2024.01.13"]
[Round "4.1"]
[White "Guichard, Pauline"]
[Black "Kosteniuk, Alexandra"]
[Result "1/2-1/2"]
[ECO "E44"]
[WhiteElo "2385"]
[BlackElo "2501"]
[Annotator "RC"]
[PlyCount "84"]
[EventDate "2023.12.19"]
[EventType "swiss"]
[EventCountry "MNC"]
[SourceTitle "playchess.com"]
[Source "ChessBase"]
[SourceQuality "1"]
[TimeControl "900+10"]

1. d4 {[%emt 0:00:02]} Nf6 {[%emt 0:00:02]} 2. c4 {[%emt 0:00:02]} e6 {[%emt 0:00:02]} 3. Nc3 {[%emt 0:00:02]} Bb4 {[%emt 0:00:01]} 4. e3 {[%emt 0:00:02]} b6 {[%emt 0:00:01]} 5. Nge2 {[%emt 0:00:05]} Ne4 {[%emt 0:00:03]} 6. Qc2 {[%emt 0:00:58]} Bb7 {[%emt 0:00:02]} 7. d5 {[%emt 0:00:35]} exd5 {[%emt 0:00:31]} 8. cxd5 {[%emt 0:00:15]} Bxd5 {[%emt 0:00:19]} 9. Bd2 {[%emt 0:02:07]} Nxc3 {[%emt 0:01:09]} 10. Nxc3 {[%emt 0:00:16]} Bb7 {[%emt 0:00:13]} 11. Bd3 {[%emt 0:00:21]} Qh4 {[%emt 0:01:06]} 12. O-O-O {[%emt 0:01:20]} Nc6 {[%emt 0:00:19]} 13. g3 {[%emt 0:00:30]} Qh5 {[%emt 0:00:31]} 14. Kb1 {[%emt 0:00:42]} O-O-O {[%emt 0:00:28]} 15. Be4 {[%emt 0:01:23]} d5 {[%emt 0:01:42]} 16. g4 {[%emt 0:00:57]} Qe5 {[%emt 0:04:14]} 17. f4 {[%emt 0:00:41]} Qe8 {[%emt 0:00:02]} 18. Nxd5 {[%emt 0:00:45]} Kb8 {[%emt 0:00:11]} 19. Nxc7 {[%emt 0:05:22]} Rxd2 {[%emt 0:00:02]} 20. Rxd2 {[%emt 0:00:54]} Kxc7 {[%emt 0:00:08]} 21. Rd5 {[%emt 0:00:12]} Bc5 {[%emt 0:00:47]} 22. Rhd1 {[%emt 0:00:16]} Qe7 {[%emt 0:03:28]} 23. Bf5 {[%emt 0:00:55]} Kb8 {[%emt 0:00:08]} 24. Rd7 {[%emt 0:00:07]} Qxe3 {[%emt 0:00:04]} 25. Be4 {[%emt 0:00:16]} Re8 {[%emt 0:00:18]} 26. Bh1 {[%emt 0:00:02]} Qxf4 {[%emt 0:00:29]} 27. a3 {[%emt 0:00:01]} Bc8 {[%emt 0:01:42]} 28. Bxc6 {[%emt 0:00:23]} Bxd7 {[%emt 0:00:01]} 29. Bxd7 {[%emt 0:00:01]} Rd8 {[%emt 0:00:16]} 30. Bf5 {[%emt 0:00:21]} Rxd1+ {[%emt 0:01:12]} 31. Qxd1 {[%emt 0:00:01]} Bd4 {[%emt 0:00:24]} 32. Qa4 {[%emt 0:00:16]} Qe5 {[%emt 0:00:23]} 33. Qd7 {[%emt 0:00:06]} a5 {[%emt 0:00:03]} 34. Qd8+ {[%emt 0:00:15]} Ka7 {[%emt 0:00:01]} 35. Bc8 {[%emt 0:00:13]} Qe4+ {[%emt 0:00:13]} 36. Ka2 {[%emt 0:00:04]} Qc6 {[%emt 0:00:04]} 37. Qe7+ {[%emt 0:00:15]} Kb8 {[%emt 0:00:01]} 38. Bf5 {[%emt 0:00:04]} Qc4+ {[%emt 0:00:08]} 39. Kb1 {[%emt 0:00:01]} Qf1+ {[%emt 0:00:12]} 40. Ka2 {[%emt 0:00:00]} Qc4+ {[%emt 0:00:01]} 41. Kb1 {[%emt 0:00:01]} Qf1+ {[%emt 0:00:41]} 42. Ka2 {[%emt 0:00:01]} Qc4+ {[%emt 0:00:06]} 1/2-1/2